lending/lending_fUSD_20240112
["ID","MTS","AMOUNT","RATE_DAILY","PERIOD"]
[311375088,1705069904181,-500.0,0.0002505,2]
[311375089,1705069904190,-500.0,0.0002505,2]
[311375090,1705069904199,-500.0,0.0002505,2]
[311375091,1705069904208,-500.0,0.0002505,2]
[311375092,1705069904218,-500.0,0.0002505,2]
[311375093,1705069904228,-500.0,0.0002505,2]
[311375094,1705069904237,-500.0,0.0002505,2]
[311375095,1705069904247,-500.0,0.0002505,2]
[311375096,1705069904260,-500.0,0.0002505,2]
[311375097,1705069904269,-500.0,0.0002505,2]
[311375098,1705069904279,-223.6,0.0002505,2]
[311375099,1705069904289,-203.64,0.0002505,2]
[311375100,1705069904298,-500.0,0.0002505,2]
[311375101,1705069904307,-500.0,0.0002505,2]
[311375102,1705069904317,-240.88,0.0002505,2]
[311375103,1705069904327,-346.16,0.0002505,2]
[311375104,1705069904337,-417.28,0.0002505,2]
[311375105,1705069904347,-500.0,0.0002505,2]
[311375106,1705069904358,-500.0,0.0002505,2]
[311375107,1705069904367,-500.0,0.0002505,2]
[311375108,1705069904377,-500.0,0.0002505,2]
[311375109,1705069904386,-393.76,0.0002505,2]
[311375110,1705069904396,-500.0,0.0002505,2]
[311375111,1705069904405,-325.92,0.0002505,2]
[311375112,1705069904414,-569.65,0.0002505,2]
[311375113,1705069904426,-500.0,0.0002505,2]
[311375114,1705069904442,-500.0,0.0002505,2]
[311375115,1705069904457,-476.66,0.0002505,2]
[311375116,1705069904467,-500.0,0.0002505,2]
[311375117,1705069904478,-500.0,0.0002505,2]
[311375118,1705069904487,-356.83,0.0002505,2]
[311375119,1705069904498,-500.0,0.0002505,2]
[311375120,1705069904510,-251.97,0.0002505,2]
[311375121,1705069904520,-500.0,0.0002505,2]
[311375122,1705069904530,-305.58,0.0002505,2]
[311375123,1705069904541,-500.0,0.0002505,2]
[311375124,1705069904552,-398.33,0.0002505,2]
[311375125,1705069904563,-500.0,0.0002505,2]
[311375126,1705069904572,-482.61,0.0002505,2]
[311375127,1705069904584,-500.0,0.0002505,2]
[311375128,1705069904594,-500.0,0.0002505,2]
[311375129,1705069904604,-500.0,0.0002505,2]
[311375130,1705069904615,-500.0,0.0002505,2]
[311375131,1705069904625,-500.0,0.0002505,2]
[311375132,1705069904634,-500.0,0.0002505,2]
[311375133,1705069904644,-171.88,0.0002505,2]
[311375134,1705069904654,-500.0,0.0002505,2]
[311375135,1705069904664,-500.0,0.0002505,2]
[311375136,1705069904674,-2064.59,0.0002505,2]
[311375137,1705069904685,-554.14,0.0002505,2]
[311375138,1705069904694,-555.49,0.0002505,2]
[311375139,1705069904704,-500.0,0.0002505,2]
[311375140,1705069904715,-500.0,0.0002505,2]
[311375141,1705069904725,-2984.21,0.0002505,2]
[311375142,1705069904735,-500.0,0.0002505,2]
[311375143,1705069904745,-500.0,0.0002505,2]
[311375144,1705069904755,-500.0,0.0002505,2]
[311375145,1705069904765,-500.0,0.0002505,2]
[311375146,1705069904775,-500.0,0.0002505,2]
[311375147,1705069904784,-500.0,0.0002505,2]
[311375148,1705069904794,-500.0,0.0002505,2]
[311375149,1705069904804,-500.0,0.0002505,2]
[311375150,1705069904814,-500.0,0.0002505,2]
[311375151,1705069904823,-500.0,0.0002505,2]
[311375152,1705069904833,-555.91,0.0002505,2]
[311375153,1705069904843,-500.0,0.0002505,2]
[311375154,1705069904853,-500.0,0.0002505,2]
[311375155,1705069904862,-500.0,0.00025051,2]
[311375156,1705069904871,-500.0,0.00025051,2]
[311375157,1705069904881,-500.0,0.00025051,2]
[311375158,1705069904890,-500.0,0.00025051,2]
[311375159,1705069904899,-500.0,0.00025051,2]
[311375160,1705069904907,-500.0,0.00025051,2]
[311375161,1705069904917,-174.4,0.00025051,2]
[311375162,1705069904927,-500.0,0.00025051,2]
[311375163,1705069904936,-500.0,0.00025051,2]
[311375164,1705069904946,-500.0,0.00025051,2]
[311375165,1705069904955,-500.0,0.00025051,2]
[311375166,1705069904965,-199.21,0.00025051,2]
[311375167,1705069904974,-500.0,0.00025051,2]
[311375168,1705069904984,-500.0,0.00025051,2]
[311375169,1705069904993,-500.0,0.00025051,2]
[311375170,1705069905003,-522.94,0.00025051,2]
[311375171,1705069905013,-500.0,0.00025051,2]
[311375172,1705069905022,-502.42,0.00025051,2]
[311375173,1705069905031,-500.0,0.00025051,2]
[311375174,1705069905040,-641.96,0.00025051,2]
[311375175,1705069905050,-248.48,0.00025051,2]
[311375176,1705069905059,-500.0,0.00025051,2]
[311375177,1705069905068,-627.87,0.00025051,2]
[311375178,1705069905078,-500.0,0.00025051,2]
[311375179,1705069905087,-881.21,0.00025051,2]
[311375180,1705069905097,-500.0,0.00025051,2]
[311375181,1705069905106,-535.59,0.00025051,2]
[311375182,1705069905116,-500.0,0.00025051,2]
[311375183,1705069905126,-514.86,0.00025051,2]
[311375184,1705069905136,-629.62,0.0002519,2]
[311375185,1705069905146,-923.31,0.0002519,2]
[311375186,1705069905156,-537.36,0.0002519,2]
[311375187,1705069905166,-760.69,0.0002519,2]
[311375188,1705069905176,-500.0,0.0002519,2]
[311375189,1705069905185,-760.98,0.0002532,2]
[311375190,1705069905194,-1576.67,0.0002532,2]
[311375191,1705069905206,-1676.63,0.0002532,2]
[311375192,1705069905215,-1776.52,0.0002532,2]
[311375193,1705069905225,-1028.33,0.0002532,2]
[311375194,1705069905234,-903.76,0.0002532,2]
[311375195,1705069905243,-823.09,0.0002532,2]
[311375196,1705069905255,-500.0,0.0002532,2]
[311375197,1705069905265,-1992.9,0.0002532,2]
[311375198,1705069905276,-500.0,0.0002532,2]
[311375199,1705069905285,-1088.57,0.0002532,2]
[311375200,1705069905296,-592.52,0.0002532,2]
[311375201,1705069905306,-1069.49,0.0002532,2]
[311375202,1705069905315,-11473.02,0.0002532,2]
[311375203,1705069905326,-1045.86,0.0002532,2]
[311375204,1705069905336,-500.0,0.0002532,2]
[311375205,1705069905345,-1530.26,0.0002532,2]
[311375206,1705069905355,-693.02,0.0002532,2]
[311375207,1705069905365,-500.0,0.0002532,2]
[311375208,1705069905375,-773.0,0.0002532,2]
[311375209,1705069905385,-1161.03,0.0002532,2]
[311375210,1705069905396,-500.0,0.0002532,2]
[311375211,1705069905407,-500.0,0.0002532,2]
[311375212,1705069905417,-500.0,0.0002532,2]
[311375213,1705069905427,-3055.75,0.0002532,2]
[311375214,1705069905437,-996.78,0.00025321,2]
[311375215,1705069905447,-939.36,0.00025321,2]
[311375216,1705069905458,-535.32,0.00025321,2]
[311375217,1705069905469,-1978.54,0.00025321,2]
[311375218,1705069905478,-570.64,0.00025321,2]
[311375219,1705069905488,-10562.85,0.00025321,2]
[311375220,1705069905498,-6373.11,0.00025321,2]
[311375221,1705069905509,-749.0,0.00025321,2]
[311375222,1705069905519,-928.84,0.00025321,2]
[311375223,1705069905529,-536.68,0.00025321,2]
[311375224,1705069905539,-2087.57,0.00025321,2]
[311375225,1705069905549,-904.81,0.00025321,2]
[311375226,1705069905559,-889.19,0.00025321,2]
[311375227,1705069905570,-978.77,0.00025321,2]
[311375228,1705069905580,-712.93,0.00025321,2]
[311375229,1705069905590,-553.32,0.00025321,2]
[311375230,1705069905600,-1083.57,0.00025321,2]
[311375231,1705069905611,-5000.64,0.00025321,2]
[311375232,1705069905621,-1837.15,0.00025321,2]
[311375233,1705069905631,-500.0,0.00025321,2]
[311375234,1705069905641,-1063.77,0.00025321,2]
[311375235,1705069905651,-161.55,0.00025321,2]
[311375236,1705069905661,-4397.81,0.00025321,2]
[311375237,1705069905671,-1384.9,0.00025321,2]
[311375238,1705069905681,-1749.07,0.00025321,2]
[311375239,1705069905691,-8501.24,0.00025321,2]
[311375240,1705069905701,-550.62,0.00025321,2]
[311375241,1705069905711,-500.0,0.00025321,2]
[311375242,1705069905720,-563.63,0.00025321,2]
[311375243,1705069905730,-2396.88,0.00025321,2]
[311375244,1705069905740,-947.32,0.00025321,2]
[311375245,1705069905750,-3427.97,0.00025321,2]
[311375246,1705069905763,-3063.47,0.00025321,2]
[311375247,1705069905774,-2388.38,0.00025321,2]
[311375248,1705069905784,-1809.41,0.00025321,2]
[311375249,1705069905794,-500.0,0.00025322,2]
[311375250,1705069905804,-500.0,0.00025322,2]
[311375251,1705069905814,-502.36,0.00025322,2]
[311375252,1705069905824,-516.86,0.00025322,2]
[311375253,1705069905835,-612.81,0.00025322,2]
[311375254,1705069905845,-300.68,0.00025322,2]
[311375255,1705069905855,-500.0,0.00025322,2]
[311375256,1705069905865,-513.4,0.00025322,2]
[311375257,1705069905875,-196.78,0.00025322,2]
[311375258,1705069905884,-500.0,0.00025322,2]
[311375259,1705069905894,-500.0,0.00025322,2]
[311375260,1705069905904,-500.0,0.00025322,2]
[311375261,1705069905915,-500.0,0.00025322,2]
[311375262,1705069905925,-504.92,0.00025322,2]
[311375263,1705069905935,-500.0,0.00025322,2]
[311375264,1705069905946,-500.0,0.00025322,2]
[311375265,1705069905955,-500.0,0.00025322,2]
[311375266,1705069905965,-500.0,0.00025322,2]
[311375267,1705069905975,-500.0,0.00025322,2]
[311375268,1705069905986,-500.0,0.00025322,2]
[311375269,1705069905996,-500.0,0.00025322,2]
[311375270,1705069906007,-605.75,0.00025322,2]
[311375271,1705069906018,-500.0,0.00025322,2]
[311375272,1705069906028,-500.0,0.00025322,2]
[311375273,1705069906038,-539.29,0.00025322,2]
[311375274,1705069906048,-585.54,0.00025322,2]
[311375275,1705069906058,-500.0,0.00025322,2]
[311375276,1705069906068,-500.25,0.00025322,2]
[311375277,1705069906079,-667.11,0.00025322,2]
[311375278,1705069906088,-503.41,0.00025322,2]
[311375279,1705069906098,-510.64,0.00025322,2]
[311375280,1705069906109,-502.72,0.00025322,2]
[311375281,1705069906119,-547.84,0.00025322,2]
[311375282,1705069906129,-500.0,0.00025322,2]
[311375283,1705069906139,-500.0,0.00025322,2]
[311375284,1705069906149,-309.12,0.00025322,2]
[311375285,1705069906159,-166.73,0.00025322,2]
[311375286,1705069906169,-500.0,0.00025322,2]
[311375287,1705069906179,-500.0,0.00025322,2]
[311375288,1705069906189,-500.0,0.00025322,2]
[311375289,1705069906199,-500.0,0.00025322,2]
[311375290,1705069906209,-500.0,0.00025322,2]
[311375291,1705069906220,-759.5,0.00025322,2]
[311375292,1705069906230,-482.88,0.00025322,2]
[311375293,1705069906242,-500.0,0.00025322,2]
[311375294,1705069906253,-594.48,0.00025322,2]
[311375295,1705069906267,-500.0,0.00025322,2]
[311375296,1705069906277,-526.9,0.00025322,2]
[311375297,1705069906287,-500.0,0.00025322,2]
[311375298,1705069906297,-828.68,0.00025322,2]
[311375299,1705069906307,-500.0,0.00025322,2]
[311375300,1705069906504,-500.0,0.00025322,2]
[311375301,1705069906517,-527.53,0.00025322,2]
[311375302,1705069906527,-1088.6,0.00025322,2]
[311375303,1705069906536,-500.0,0.00025322,2]
[311375304,1705069906545,-1291.94,0.00025322,2]
[311375305,1705069906555,-500.0,0.00025322,2]
[311375306,1705069906566,-810.7,0.00025322,2]
[311375307,1705069906578,-4607.32,0.00025322,2]
[311375308,1705069906589,-504.06,0.00025322,2]
[311375309,1705069906599,-500.0,0.00025322,2]
[311375310,1705069906609,-512.6,0.00025322,2]
[311375311,1705069906619,-500.0,0.00025322,2]
[311375312,1705069906629,-500.0,0.00025322,2]
[311375313,1705069906638,-2315.41,0.00025322,2]
[311375314,1705069906647,-332.85,0.00025322,2]
[311375315,1705069906658,-500.0,0.00025322,2]
[311375316,1705069906667,-500.0,0.00025322,2]
[311375317,1705069906677,-1074.73,0.00025322,2]
[311375318,1705069906687,-1389.91,0.00025322,2]
[311375319,1705069906697,-500.0,0.00025322,2]
[311375320,1705069906706,-845.05,0.00025322,2]
[311375321,1705069906716,-888.54,0.00025322,2]
[311375322,1705069906725,-423.35,0.00025322,2]
[311375323,1705069906735,-500.0,0.00025322,2]
[311375324,1705069906744,-1741.88,0.00025322,2]
[311375325,1705069906753,-500.0,0.00025322,2]
[311375326,1705069906766,-1065.09,0.00025322,2]
[311375327,1705069906777,-500.0,0.00025322,2]
[311375328,1705069906813,-500.0,0.00025322,2]
[311375329,1705069906822,-547.61,0.00025322,2]
[311375330,1705069906832,-866.87,0.00025322,2]
[311375331,1705069906842,-500.0,0.00025322,2]
[311375332,1705069906851,-500.0,0.00025322,2]
[311375333,1705069906860,-500.0,0.00025322,2]
[311375334,1705069906869,-500.0,0.00025322,2]
[311375335,1705069906879,-1887.65,0.00025322,2]
[311375336,1705069906889,-500.0,0.00025322,2]
[311375337,1705069906898,-500.0,0.00025322,2]
[311375338,1705069906907,-679.52,0.00025322,2]
[311375339,1705069906918,-978.52,0.00025322,2]
[311375340,1705069906927,-523.52,0.00025322,2]
[311375341,1705069906936,-538.5,0.00025322,2]
[311375342,1705069906946,-552.31,0.00025322,2]
[311375343,1705069906955,-1607.05,0.00025322,2]
[311375344,1705069906965,-625.78,0.00025322,2]
[311375345,1705069906974,-500.0,0.00025322,2]
[311375346,1705069906983,-1162.04,0.00025322,2]
[311375347,1705069906993,-406.45,0.00025322,2]
[311375348,1705069907002,-3925.57,0.00025322,2]
[311375349,1705069907014,-6529.19,0.00025322,2]
[311375350,1705069907023,-1245.87,0.00025322,2]
[311375351,1705069907032,-500.0,0.00025322,2]
[311375352,1705069907042,-500.0,0.00025323,2]
[311375353,1705069907051,-500.0,0.00025323,2]
[311375354,1705069907060,-500.0,0.00025323,2]
[311375355,1705069907069,-502.5,0.00025323,2]
[311375356,1705069907078,-500.0,0.00025323,2]
[311375357,1705069907087,-500.0,0.00025323,2]
[311375358,1705069907097,-702.1,0.00025323,2]
[311375359,1705069907106,-500.0,0.00025323,2]
[311375360,1705069907116,-544.39,0.00025323,2]
[311375361,1705069907125,-672.68,0.00025323,2]
[311375362,1705069907134,-500.0,0.00025323,2]
[311375363,1705069907143,-500.0,0.00025323,2]
[311375364,1705069907153,-729.54,0.00025323,2]
[311375365,1705069907162,-500.0,0.00025323,2]
[311375366,1705069907172,-500.0,0.00025323,2]
[311375367,1705069907181,-566.81,0.00025323,2]
[311375368,1705069907191,-500.0,0.00025323,2]
[311375369,1705069907201,-668.25,0.00025323,2]
[311375370,1705069907210,-500.0,0.00025323,2]
[311375371,1705069907219,-695.69,0.00025323,2]
[311375372,1705069907229,-500.0,0.00025323,2]
[311375373,1705069907239,-500.0,0.00025323,2]
[311375374,1705069907248,-500.84,0.00025323,2]
[311375375,1705069907260,-693.65,0.00025323,2]
[311375376,1705069907270,-500.0,0.00025323,2]
[311375377,1705069907280,-738.92,0.00025323,2]
[311375378,1705069907289,-500.0,0.00025323,2]
[311375379,1705069907299,-818.71,0.00025323,2]
[311375380,1705069907309,-1260.63,0.00025323,2]
[311375381,1705069907318,-500.0,0.00025323,2]
[311375382,1705069907327,-997.12,0.00025323,2]
[311375383,1705069907336,-500.0,0.00025323,2]
[311375384,1705069907347,-791.08,0.00025323,2]
[311375385,1705069907356,-500.0,0.00025323,2]
[311375386,1705069907365,-583.49,0.00025323,2]
[311375387,1705069907375,-764.86,0.00025323,2]
[311375388,1705069907384,-500.0,0.00025323,2]
[311375389,1705069907394,-500.0,0.00025323,2]
[311375390,1705069907403,-500.0,0.00025323,2]
[311375391,1705069907413,-500.0,0.00025323,2]
[311375392,1705069907423,-500.0,0.00025323,2]
[311375393,1705069907433,-666.51,0.00025323,2]
[311375394,1705069907442,-500.0,0.00025323,2]
[311375395,1705069907452,-538.35,0.00025323,2]
[311375396,1705069907461,-778.72,0.00025323,2]
[311375397,1705069907471,-500.0,0.00025323,2]
[311375398,1705069907481,-500.0,0.00025323,2]
[311375399,1705069907490,-500.0,0.00025323,2]
[311375400,1705069907500,-500.0,0.00025323,2]
[311375401,1705069907513,-523.13,0.00025323,2]
[311375402,1705069907523,-500.0,0.00025323,2]
[311375403,1705069907532,-1386.41,0.00025323,2]
[311375404,1705069907541,-500.0,0.00025323,2]
[311375405,1705069907552,-913.03,0.00025323,2]
[311375406,1705069907562,-632.3,0.00025323,2]
[311375407,1705069907572,-500.0,0.00025323,2]
[311375408,1705069907583,-507.75,0.00025323,2]
[311375409,1705069907593,-713.86,0.00025323,2]
[311375410,1705069907602,-500.0,0.00025323,2]
[311375411,1705069907612,-565.93,0.00025323,2]
[311375412,1705069907622,-528.24,0.00025323,2]
[311375413,1705069907631,-1012.05,0.00025323,2]
[311375414,1705069907641,-2200.73,0.00025323,2]
[311375415,1705069907650,-500.0,0.00025323,2]
[311375416,1705069907660,-500.0,0.00025323,2]
[311375417,1705069907669,-574.28,0.00025323,2]
[311375418,1705069907679,-500.0,0.00025323,2]
[311375419,1705069907689,-610.82,0.00025323,2]
[311375420,1705069907699,-679.81,0.00025323,5]
[311375421,1705069907709,-560.5,0.00025323,2]
[311375422,1705069907719,-1995.08,0.00025323,2]
[311375423,1705069907729,-500.0,0.00025323,2]
[311375424,1705069907738,-1910.97,0.00025323,2]
[311375425,1705069907748,-500.0,0.00025323,2]
[311375426,1705069907759,-500.0,0.00025323,2]
[311375427,1705069907769,-500.0,0.00025323,2]
[311375428,1705069907780,-1099.3,0.00025323,2]
[311375429,1705069907789,-531.38,0.00025323,2]
[311375430,1705069907799,-500.0,0.00025323,2]
[311375431,1705069907808,-832.14,0.00025323,2]
[311375432,1705069907818,-871.05,0.00025323,2]
[311375433,1705069907828,-963.48,0.00025323,2]
[311375434,1705069907838,-500.0,0.00025323,2]
[311375435,1705069907847,-674.09,0.00025323,2]
[311375436,1705069907856,-500.0,0.00025323,2]
[311375437,1705069907866,-500.0,0.00025323,2]
[311375438,1705069907876,-673.94,0.00025323,2]
[311375439,1705069907885,-1270.12,0.00025323,2]
[311375440,1705069907895,-536.49,0.00025323,2]
[311375441,1705069907904,-694.97,0.00025323,2]
[311375442,1705069907914,-511.44,0.00025323,2]
[311375443,1705069907923,-500.0,0.00025323,2]
[311375444,1705069907932,-500.0,0.00025323,2]
[311375445,1705069907942,-500.0,0.00025323,2]
[311375446,1705069907952,-521.98,0.00025323,2]
[311375447,1705069907962,-592.85,0.00025323,2]
[311375448,1705069907971,-500.0,0.00025323,2]
[311375449,1705069907980,-511.22,0.00025323,2]
[311375450,1705069907990,-1245.3,0.00025323,2]
[311375451,1705069907999,-757.48,0.00025323,2]
[311375452,1705069908009,-715.96,0.00025323,2]
[311375453,1705069908018,-500.0,0.00025324,2]
[311375454,1705069908027,-500.0,0.00025324,2]
[311375455,1705069908036,-500.0,0.00025324,2]
[311375456,1705069908046,-500.0,0.00025324,2]
[311375457,1705069908056,-509.82,0.00025324,2]
[311375458,1705069908065,-500.0,0.00025324,2]
[311375459,1705069908074,-500.0,0.00025324,2]
[311375460,1705069908083,-500.0,0.00025324,2]
[311375461,1705069908092,-500.0,0.00025324,2]
[311375462,1705069908101,-500.0,0.00025324,2]
[311375463,1705069908110,-500.0,0.00025324,2]
[311375464,1705069908119,-500.0,0.00025324,2]
[311375465,1705069908129,-500.0,0.00025324,2]
[311375466,1705069908138,-500.0,0.00025324,2]
[311375467,1705069908148,-500.0,0.00025324,2]
[311375468,1705069908157,-500.0,0.00025324,2]
[311375469,1705069908166,-500.0,0.00025324,2]
[311375470,1705069908176,-500.0,0.00025324,2]
[311375471,1705069908185,-435.92,0.00025324,2]
[311375472,1705069908195,-500.0,0.00025324,2]
[311375473,1705069908204,-500.0,0.00025324,2]
[311375474,1705069908215,-569.65,0.00025324,2]
[311375475,1705069908224,-500.0,0.00025324,2]
[311375476,1705069908234,-500.0,0.00025324,2]
[311375477,1705069908243,-500.0,0.00025324,2]
[311375478,1705069908252,-151.25,0.00025324,2]
[311375479,1705069908266,-183.19818041,0.00025324,2]
[311375480,1705069908275,-500.0,0.00025324,2]
[311375481,1705069908285,-436.49,0.00025324,2]
[311375482,1705069908294,-500.0,0.00025324,2]
[311375483,1705069908303,-500.0,0.00025324,2]
[311375484,1705069908312,-500.0,0.00025324,2]
[311375485,1705069908322,-500.0,0.00025324,2]
[311375486,1705069908330,-500.0,0.00025324,2]
[311375487,1705069908340,-394.82929227,0.00025324,2]
[311375488,1705069908351,-500.0,0.00025324,2]
[311375489,1705069908360,-500.0,0.00025324,2]
[311375490,1705069908371,-500.0,0.00025324,2]
[311375491,1705069908381,-2064.59,0.00025324,2]
[311375492,1705069908391,-554.14,0.00025324,2]
[311375493,1705069908401,-555.49,0.00025324,2]
[311375494,1705069908410,-500.0,0.00025324,2]
[311375495,1705069908421,-571.84169979,0.00025324,2]
[311375496,1705069908430,-2984.21,0.00025324,2]
[311375497,1705069908439,-500.0,0.00025324,2]
[311375498,1705069908449,-500.0,0.00025324,2]
[311375499,1705069908458,-500.0,0.00025324,2]
[311375500,1705069908467,-500.0,0.00025324,2]
[311375501,1705069908477,-500.0,0.00025324,2]
[311375502,1705069908486,-500.0,0.00025324,2]
[311375503,1705069908496,-500.0,0.00025324,2]
[311375504,1705069908505,-500.0,0.00025324,2]
[311375505,1705069908518,-500.0,0.00025324,2]
[311375506,1705069908527,-188.91390365,0.00025324,2]
[311375507,1705069908537,-538.63,0.00025324,2]
[311375508,1705069908547,-500.0,0.00025324,2]
[311375509,1705069908556,-368.91,0.00025325,2]
[311375510,1705069908565,-500.0,0.00025325,2]
[311375511,1705069908580,-500.0,0.00025325,2]
[311375512,1705069908591,-500.0,0.00025325,2]
[311375513,1705069908600,-196.7,0.00025325,2]
[311375514,1705069908609,-500.0,0.00025325,2]
[311375515,1705069908619,-500.0,0.00025325,2]
[311375516,1705069908628,-166.63,0.00025325,2]
[311375517,1705069908637,-500.0,0.00025325,2]
[311375518,1705069908646,-500.0,0.00025325,2]
[311375519,1705069908658,-500.0,0.00025325,2]
[311375520,1705069908668,-453.41,0.00025325,2]
[311375521,1705069908678,-524.96,0.00025325,2]
[311375522,1705069908687,-500.0,0.00025325,2]
[311375523,1705069908699,-502.42,0.00025325,2]
[311375524,1705069908708,-172.7,0.00025325,2]
[311375525,1705069908718,-500.0,0.00025325,2]
[311375526,1705069908727,-500.0,0.00025325,2]
[311375527,1705069908737,-881.21,0.00025325,2]
[311375528,1705069908746,-500.0,0.00025325,2]
[311375529,1705069908755,-535.59,0.00025325,2]
[311375530,1705069908770,-500.0,0.00025325,2]
[311375531,1705069908780,-514.86,0.00025325,2]
[311375532,1705069908789,-4615.76611416,0.00025373,2]
[311375533,1705069908799,-4540.888268,0.00025395,2]
[311375534,1705069908808,-629.62,0.00025464,2]
[311375535,1705069908818,-923.31,0.00025464,2]
[311375536,1705069908828,-537.36,0.00025464,2]
[311375537,1705069908841,-760.69,0.00025464,2]
[311375538,1705069908850,-500.0,0.00025464,2]
[311375539,1705069908860,-279.43,0.00025534,2]
[311375540,1705069908869,-760.98,0.00025594,2]
[311375541,1705069908878,-1576.67,0.00025594,2]
[311375542,1705069908887,-1676.63,0.00025594,2]
[311375543,1705069908897,-1776.52,0.00025594,2]
[311375544,1705069908906,-1028.33,0.00025594,2]
[311375545,1705069908916,-903.76,0.00025594,2]
[311375546,1705069908926,-823.09,0.00025594,2]
[311375547,1705069908935,-500.0,0.00025594,2]
[311375548,1705069908944,-1992.9,0.00025594,2]
[311375549,1705069908954,-500.0,0.00025594,2]
[311375550,1705069908963,-1088.57,0.00025594,2]
[311375551,1705069908974,-592.52,0.00025594,2]
[311375552,1705069908983,-1069.49,0.00025594,2]
[311375553,1705069908992,-11473.02,0.00025594,2]
[311375554,1705069909002,-1045.86,0.00025594,2]
[311375555,1705069909013,-500.0,0.00025594,2]
[311375556,1705069909023,-1530.26,0.00025594,2]
[311375557,1705069909032,-693.02,0.00025594,2]
[311375558,1705069909041,-500.0,0.00025594,2]
[311375559,1705069909050,-773.0,0.00025594,2]
[311375560,1705069909059,-1161.03,0.00025594,2]
[311375561,1705069909069,-500.0,0.00025594,2]
[311375562,1705069909078,-500.0,0.00025594,2]
[311375563,1705069909087,-500.0,0.00025594,2]
[311375564,1705069909098,-3055.75,0.00025594,2]
[311375565,1705069909107,-996.78,0.00025595,2]
[311375566,1705069909116,-939.36,0.00025595,2]
[311375567,1705069909126,-535.32,0.00025595,2]
[311375568,1705069909135,-1978.54,0.00025595,2]
[311375569,1705069909144,-570.64,0.00025595,2]
[311375570,1705069909153,-10562.85,0.00025595,2]
[311375571,1705069909162,-6373.11,0.00025595,2]
[311375572,1705069909172,-749.0,0.00025595,2]
[311375573,1705069909181,-928.84,0.00025595,2]
[311375574,1705069909190,-536.68,0.00025595,2]
[311375575,1705069909199,-2087.57,0.00025595,2]
[311375576,1705069909209,-904.81,0.00025595,2]
[311375577,1705069909219,-889.19,0.00025595,2]
[311375578,1705069909228,-978.77,0.00025595,2]
[311375579,1705069909238,-712.93,0.00025595,2]
[311375580,1705069909248,-553.32,0.00025595,2]
[311375581,1705069909257,-1083.57,0.00025595,2]
[311375582,1705069909268,-5000.64,0.00025595,2]
[311375583,1705069909277,-1837.15,0.00025595,2]
[311375584,1705069909286,-500.0,0.00025595,2]
[311375585,1705069909296,-1063.77,0.00025595,2]
[311375586,1705069909306,-4397.81,0.00025595,2]
[311375587,1705069909315,-1384.9,0.00025595,2]